bitfinex-derivatives/quotes_BTCF0:USTF0_20250527
["timestamp","ask_amount","ask_price","bid_price","bid_amount"]
[1748382749992,0.75208464,109060.0,109050.0,0.183312]
[1748382750192,0.75208464,109060.0,109050.0,0.71221672]
[1748382750497,0.18758447,109060.0,109050.0,1.57692338]
[1748382750695,0.18758447,109060.0,109050.0,1.57742032]
[1748382750883,0.18758447,109060.0,109050.0,2.04006032]
[1748382751981,0.00427577,109060.0,109050.0,2.02006032]
[1748382752187,0.00427577,109060.0,109050.0,2.30006032]
[1748382752480,0.27356339,109080.0,109050.0,2.45399883]
[1748382752684,0.0019,109090.0,109080.0,0.1832617]
[1748382752886,0.1519,109090.0,109080.0,2.01247601]
[1748382753087,0.0019,109090.0,109080.0,2.01247601]
[1748382753287,0.0019,109090.0,109080.0,2.12385606]
[1748382753493,0.67267534,109100.0,109090.0,0.1832449]
[1748382753494,0.10237534,109100.0,109090.0,0.1832449]
[1748382753797,0.10251286,109100.0,109090.0,1.66135748]
[1748382754092,0.10251286,109100.0,109090.0,1.66173909]
[1748382754295,0.10251286,109100.0,109090.0,1.86559059]
[1748382754490,0.10113752,109100.0,109090.0,1.86559059]
[1748382754796,0.10113752,109100.0,109090.0,1.91600059]
[1748382755488,0.10213752,109100.0,109090.0,1.91600059]
[1748382755793,0.10313752,109100.0,109090.0,1.91600059]
[1748382755998,0.10213752,109100.0,109090.0,1.78865239]
[1748382756184,0.10213752,109100.0,109090.0,1.53620025]
[1748382756382,0.10213752,109100.0,109090.0,1.78865239]
[1748382756589,0.3821,109120.0,109110.0,0.1832113]
[1748382756792,0.3821,109120.0,109110.0,1.49712349]
[1748382756998,0.3821,109120.0,109110.0,1.49813746]
[1748382757195,0.3821,109120.0,109110.0,1.87083746]
[1748382757899,0.3851,109120.0,109110.0,1.87083746]
[1748382758201,0.0059,109120.0,109110.0,1.87083746]
[1748382758390,0.0059,109120.0,109110.0,1.87055746]
[1748382758590,0.3975,109120.0,109110.0,1.91179746]
[1748382758793,0.3975,109120.0,109110.0,2.27259746]
[1748382759387,0.3975,109120.0,109110.0,2.02359746]
[1748382759598,0.3975,109120.0,109110.0,2.55259746]
[1748382760089,0.3975,109120.0,109110.0,2.02359746]
[1748382760288,0.3975,109120.0,109110.0,2.55251746]
[1748382760488,0.2034,109120.0,109110.0,2.55251746]
[1748382761286,0.0079,109120.0,109110.0,2.55251746]
[1748382761994,0.0079,109120.0,109110.0,2.5530144]
[1748382762195,0.0079,109120.0,109110.0,2.55491148]
[1748382762692,0.0059,109120.0,109110.0,2.55491148]
[1748382763203,0.0039,109120.0,109110.0,2.55491148]
[1748382763997,0.0039,109120.0,109110.0,2.55483148]
[1748382764300,0.0039,109120.0,109110.0,2.30237934]
[1748382764489,0.0039,109120.0,109110.0,2.02599148]
[1748382764691,0.3785945,109120.0,109110.0,2.02599148]
[1748382764891,0.5783945,109120.0,109110.0,2.48495148]
[1748382765087,0.3952,109120.0,109110.0,2.23249934]
[1748382765487,0.5897,109120.0,109110.0,2.48495148]
[1748382766191,0.0039,109120.0,109110.0,2.48483148]
[1748382766398,0.1839,109120.0,109110.0,2.48483148]
[1748382766896,0.3837,109120.0,109110.0,2.48483148]
[1748382767893,0.00013752,109130.0,109120.0,0.1831945]
[1748382768097,0.37803752,109130.0,109120.0,1.87634664]
[1748382768409,0.37803752,109130.0,109120.0,1.87874066]
[1748382769289,0.37903752,109130.0,109120.0,1.87874066]
[1748382770497,0.56221522,109130.0,109120.0,1.87874066]
[1748382770692,0.56421522,109130.0,109120.0,0.87668852]
[1748382770894,0.58421522,109130.0,109120.0,1.56536852]
[1748382771205,0.58421522,109130.0,109120.0,1.03680852]
[1748382771390,0.58421522,109130.0,109120.0,0.68650852]
[1748382771590,0.81666736,109130.0,109120.0,0.50331402]
[1748382771907,1.18746736,109130.0,109120.0,0.75266852]
[1748382772105,0.57421522,109130.0,109120.0,0.75278852]
[1748382773194,0.57421522,109130.0,109120.0,0.75274852]
[1748382773396,0.82666736,109130.0,109120.0,0.32570852]
[1748382773609,0.57421522,109130.0,109120.0,0.32570852]
[1748382774006,0.93501522,109130.0,109120.0,0.32570852]
[1748382774202,1.18746736,109130.0,109120.0,0.32570852]
[1748382775009,0.93501522,109130.0,109120.0,0.32570852]
[1748382776696,1.27665522,109130.0,109120.0,0.32570852]
[1748382777209,1.26665522,109130.0,109120.0,0.14251402]
[1748382777401,1.82910736,109130.0,109120.0,0.00251402]
[1748382777705,2.25610736,109130.0,109120.0,0.00251402]
[1748382777894,2.25610736,109130.0,109120.0,0.00239402]
[1748382778093,2.25610736,109130.0,109120.0,0.00251402]
[1748382778801,2.29502618,109130.0,109120.0,0.00251402]
[1748382779113,2.25610736,109130.0,109120.0,0.00251402]
[1748382779815,2.29500858,109130.0,109120.0,0.00251402]
[1748382780325,0.1832113,109110.0,109100.0,0.01387752]
[1748382780509,1.57882344,109110.0,109100.0,0.01387752]
[1748382780713,1.67047944,109110.0,109100.0,0.01387752]
[1748382781010,2.05437944,109110.0,109100.0,0.01399752]
[1748382781211,2.19215301,109110.0,109100.0,0.01387752]
[1748382781512,0.1832617,109080.0,109070.0,1.40122762]
[1748382781815,0.1832617,109080.0,109070.0,1.57540932]
[1748382782016,0.7611617,109080.0,109070.0,1.57552932]
[1748382782406,0.3805617,109080.0,109070.0,0.95434932]
[1748382782606,0.80018513,109080.0,109070.0,0.95446932]
[1748382782801,0.80018513,109080.0,109070.0,1.14844932]
[1748382783006,0.80018513,109080.0,109070.0,1.14856932]
[1748382783216,0.80018513,109080.0,109070.0,1.14956932]
[1748382783419,0.7611617,109080.0,109070.0,1.14956932]
[1748382783713,0.80015382,109080.0,109070.0,1.14956932]
[1748382784106,0.80015382,109080.0,109070.0,0.27139542]
[1748382784313,1.44340373,109080.0,109070.0,0.27127542]
[1748382784503,1.44340373,109080.0,109070.0,0.08249542]
[1748382784712,0.1832785,109070.0,109060.0,0.00197129]
[1748382785010,1.52288053,109070.0,109060.0,0.00209129]
[1748382785210,1.86456853,109070.0,109060.0,0.00209129]
[1748382785419,1.86456853,109070.0,109060.0,0.00197129]
[1748382785616,1.61211639,109070.0,109060.0,0.00209129]
[1748382785819,1.86456853,109070.0,109060.0,0.00209129]
[1748382786014,1.86456853,109070.0,109060.0,0.00409129]
[1748382786215,1.86456853,109070.0,109060.0,0.00609129]
[1748382786421,1.86444477,109070.0,109060.0,0.00597129]
[1748382786916,1.86443656,109070.0,109060.0,0.00597129]
[1748382787110,1.86443656,109070.0,109060.0,0.00609129]
[1748382787318,1.61443656,109070.0,109060.0,0.00609129]
[1748382787518,1.61443656,109070.0,109060.0,0.00397129]
[1748382787723,1.61743656,109070.0,109060.0,0.00409129]
[1748382787906,1.86943656,109070.0,109060.0,0.00209129]
[1748382788410,1.61943656,109070.0,109060.0,0.00197129]
[1748382788716,1.61936164,109070.0,109060.0,0.00209129]
[1748382790814,2.00749864,109070.0,109060.0,0.38179129]
[1748382791607,1.2265665,109070.0,109060.0,0.38179129]
[1748382791921,1.7550465,109070.0,109060.0,0.56508659]
[1748382792613,1.6633585,109070.0,109060.0,0.56508659]
[1748382793015,1.91581064,109070.0,109060.0,0.56508659]
[1748382793918,1.6633585,109070.0,109060.0,0.56508659]
[1748382795418,1.6633585,109070.0,109060.0,0.56508669]
[1748382795618,0.7690785,109070.0,109060.0,0.56508669]
[1748382796012,1.2975185,109070.0,109060.0,0.56508669]
[1748382796323,0.9367185,109070.0,109060.0,0.56508669]
[1748382796728,1.1358185,109070.0,109060.0,0.56508669]
[1748382797028,1.3258185,109070.0,109060.0,0.56508669]
[1748382798326,0.5097185,109070.0,109060.0,0.56508669]
[1748382798531,0.9367185,109070.0,109060.0,0.56508669]
[1748382799022,1.1358185,109070.0,109060.0,0.56508669]
[1748382799421,1.1358185,109070.0,109060.0,0.38179129]
[1748382799928,0.7088185,109070.0,109060.0,0.56508659]
[1748382800127,0.5097185,109070.0,109060.0,0.56508659]
[1748382800437,0.5097185,109070.0,109060.0,0.38179129]
[1748382802233,0.4082785,109070.0,109060.0,0.38179129]
[1748382802435,0.5097185,109070.0,109060.0,0.38179129]
[1748382802845,0.4082785,109070.0,109060.0,0.38179129]
[1748382803038,0.5097185,109070.0,109060.0,0.38179129]
[1748382804549,0.7005185,109070.0,109060.0,0.38179129]
[1748382805052,0.5097185,109070.0,109060.0,0.38179129]
[1748382805244,0.7005185,109070.0,109060.0,0.38179129]
[1748382805550,0.932575,109070.0,109060.0,0.38179129]
[1748382807054,0.739475,109070.0,109060.0,0.38179129]
[1748382807751,0.548675,109070.0,109060.0,0.38179129]
[1748382807951,0.447235,109070.0,109060.0,0.74259129]
[1748382808251,0.1882785,109070.0,109060.0,1.18833813]
[1748382809443,0.1832785,109070.0,109060.0,1.33580313]
[1748382809755,0.1388321,109080.0,109060.0,1.33580313]
[1748382809955,0.3220933,109080.0,109070.0,1.41771014]
[1748382810250,0.3220933,109080.0,109070.0,1.53771014]
[1748382811555,0.3240933,109080.0,109070.0,1.386698]
[1748382812251,0.3260933,109080.0,109070.0,1.285178]
[1748382812652,0.3260933,109080.0,109070.0,1.476678]
[1748382813163,0.2344553,109080.0,109070.0,1.671878]
[1748382813459,0.2324553,109080.0,109070.0,1.92533014]
[1748382814454,0.2304553,109080.0,109070.0,1.92533014]
[1748382815258,0.2304553,109080.0,109070.0,1.93533014]
[1748382815952,0.2304553,109080.0,109070.0,1.682878]
[1748382817661,0.1846371,109080.0,109070.0,1.682878]
[1748382817858,0.0013759,109080.0,109070.0,1.682878]
[1748382818059,0.1846371,109080.0,109070.0,1.682878]
[1748382818560,0.3841371,109080.0,109070.0,1.682878]
[1748382818961,0.3841371,109080.0,109070.0,1.682758]
[1748382819359,0.3841371,109080.0,109070.0,1.49948]
[1748382819550,0.3841371,109080.0,109070.0,1.0728]
[1748382819756,0.3841371,109080.0,109070.0,1.12868]
[1748382819955,0.6095371,109080.0,109070.0,0.51062]
[1748382820161,0.9195371,109080.0,109070.0,0.5105]
[1748382820462,0.9195371,109080.0,109070.0,0.51062]
[1748382821257,0.9195371,109080.0,109070.0,0.5105]
[1748382821462,0.9195371,109080.0,109070.0,0.51062]
[1748382822358,1.53278924,109080.0,109070.0,0.12112]
[1748382822656,1.53278924,109080.0,109070.0,0.00112]
[1748382822866,0.9195371,109080.0,109070.0,0.001]
[1748382823050,1.17198924,109080.0,109070.0,0.19252]
[1748382824166,1.17198924,109080.0,109070.0,0.00112]
[1748382825764,1.17198924,109080.0,109070.0,0.184398]
[1748382826059,1.17198924,109080.0,109070.0,0.00112]
[1748382827557,0.9195371,109080.0,109070.0,0.00112]
[1748382831162,0.95764277,109080.0,109070.0,0.00112]
[1748382831966,0.95764845,109080.0,109070.0,0.00112]
[1748382832167,0.95764845,109080.0,109070.0,0.20042]
[1748382832366,0.95764845,109080.0,109070.0,0.58032]
[1748382832556,0.95764845,109080.0,109070.0,0.94112]
[1748382833061,0.0013759,109080.0,109070.0,2.00336794]
[1748382833358,0.0013759,109080.0,109070.0,2.21336794]
[1748382833860,0.0013759,109080.0,109070.0,2.36815198]
[1748382835166,0.1846346,109080.0,109070.0,2.36815198]
[1748382835970,0.1846346,109080.0,109070.0,2.36803198]
[1748382836267,0.1846346,109080.0,109070.0,2.20765533]
[1748382836470,0.3732346,109080.0,109070.0,2.20765533]
[1748382837966,0.1899759,109080.0,109070.0,2.20765533]
[1748382838665,0.3732358,109080.0,109070.0,0.98090404]
[1748382838963,0.3732358,109080.0,109070.0,0.6836]
[1748382838964,0.8036358,109080.0,109070.0,0.6836]
[1748382839171,0.8036358,109080.0,109070.0,0.32292]
[1748382839672,1.45503207,109080.0,109070.0,0.14012]
[1748382840367,0.1832767,109070.0,109060.0,0.97197129]
[1748382840567,0.71221628,109070.0,109060.0,1.17526479]
[1748382840768,0.90921628,109070.0,109060.0,1.17526479]
[1748382841158,0.90921628,109070.0,109060.0,0.74898479]
[1748382841355,0.8710767,109070.0,109060.0,1.17538479]
[1748382842069,0.9092097,109070.0,109060.0,1.17538479]
[1748382842267,1.1292097,109070.0,109060.0,0.56569129]
[1748382842471,1.1292097,109070.0,109060.0,0.74898479]
[1748382842472,1.1302097,109070.0,109060.0,0.74898479]
[1748382842866,1.38266184,109070.0,109060.0,0.74886479]
[1748382843066,1.38266184,109070.0,109060.0,0.74898479]
[1748382843473,1.38265714,109070.0,109060.0,0.74898479]
[1748382844073,1.130205,109070.0,109060.0,0.74898479]
[1748382844264,1.130205,109070.0,109060.0,0.56569129]
[1748382844469,1.38265714,109070.0,109060.0,0.56569129]
[1748382845664,1.130205,109070.0,109060.0,0.56569129]
[1748382846374,1.231445,109070.0,109060.0,0.56569129]
[1748382846571,1.1933167,109070.0,109060.0,0.56569129]
[1748382848171,1.1933167,109070.0,109060.0,0.54569129]
[1748382848375,1.1933167,109070.0,109060.0,0.74279129]
[1748382849275,1.1933167,109070.0,109060.0,0.59296351]
[1748382849466,1.44576884,109070.0,109060.0,0.38002]
[1748382855271,1.87212884,109070.0,109060.0,0.38002]
[1748382856681,1.6196767,109070.0,109060.0,0.38002]
[1748382856876,0.7046767,109070.0,109060.0,0.5633132]
[1748382857182,0.8057167,109070.0,109060.0,0.5733132]
[1748382859282,0.7046767,109070.0,109060.0,0.5733132]
[1748382859586,0.9923167,109070.0,109060.0,0.5733132]
[1748382864385,1.02979675,109070.0,109060.0,0.5733132]
[1748382864586,0.69979675,109070.0,109060.0,0.5733132]
[1748382864787,0.84979675,109070.0,109060.0,0.5733132]
[1748382865384,0.84980636,109070.0,109060.0,0.5733132]
[1748382866779,0.84980636,109070.0,109060.0,0.39002]
[1748382866979,1.06980636,109070.0,109060.0,0.39002]
[1748382867272,1.3222585,109070.0,109060.0,0.39002]
[1748382868186,0.89980636,109070.0,109060.0,0.39002]
[1748382868582,0.89980636,109070.0,109060.0,0.38002]
[1748382869187,1.26060636,109070.0,109060.0,0.38002]
[1748382869791,1.26067261,109070.0,109060.0,0.38002]
[1748382873893,1.26067261,109070.0,109060.0,0.3799]
[1748382874192,1.26066336,109070.0,109060.0,0.3799]
[1748382878491,1.2231167,109070.0,109060.0,0.3799]
[1748382878697,1.26066119,109070.0,109060.0,0.3799]
[1748382887295,1.2231167,109070.0,109060.0,0.3799]
[1748382887502,1.2606598,109070.0,109060.0,0.3799]
[1748382888903,1.2606598,109070.0,109060.0,0.1828]
[1748382889303,1.2606598,109070.0,109060.0,0.37062]
[1748382889502,1.30320605,109070.0,109060.0,0.37062]
[1748382889701,1.55565819,109070.0,109060.0,0.37062]
[1748382889897,1.51311194,109070.0,109060.0,0.37062]
[1748382890204,1.55565819,109070.0,109060.0,0.37062]
[1748382891806,1.55765819,109070.0,109060.0,0.37062]
[1748382892212,1.30520605,109070.0,109060.0,0.37062]
[1748382892410,1.0760598,109070.0,109060.0,0.37062]
[1748382892604,0.9750198,109070.0,109060.0,0.37062]
[1748382892805,1.0759398,109070.0,109060.0,0.37062]
[1748382893207,1.11848605,109070.0,109060.0,0.37062]
[1748382893708,0.6142198,109070.0,109060.0,0.37062]
[1748382894509,0.6142198,109070.0,109060.0,0.38062]
[1748382894711,1.21736605,109070.0,109060.0,0.38062]
[1748382896121,0.003,109070.0,109060.0,1.88239738]
[1748382896319,0.0013759,109080.0,109070.0,0.1832764]
[1748382896518,0.0013759,109080.0,109070.0,2.3635323]
[1748382896715,0.0013759,109080.0,109070.0,2.50241346]
[1748382896911,0.0013759,109080.0,109070.0,2.51172359]
[1748382897320,0.00013752,109090.0,109080.0,0.1832597]
[1748382897516,0.00013752,109090.0,109080.0,1.41187594]
[1748382897708,0.00013752,109090.0,109080.0,1.85666267]
[1748382898621,3.752e-05,109090.0,109080.0,1.81137776]
[1748382898807,3.752e-05,109090.0,109080.0,1.85757428]
[1748382899412,3.752e-05,109090.0,109080.0,1.81137776]
[1748382899617,3.752e-05,109090.0,109080.0,1.85754707]
[1748382900006,3.752e-05,109090.0,109080.0,1.85954707]
[1748382900207,3.752e-05,109090.0,109080.0,1.60709493]
[1748382900405,3.752e-05,109090.0,109080.0,1.85954707]
[1748382900614,3.752e-05,109090.0,109080.0,2.04094707]
[1748382901325,3.752e-05,109090.0,109080.0,1.99477776]
[1748382902518,3.752e-05,109090.0,109080.0,1.89166303]
[1748382903024,3.752e-05,109090.0,109080.0,1.89178303]
[1748382903325,3.752e-05,109090.0,109080.0,1.64178303]
[1748382903622,0.18328042,109090.0,109080.0,1.29765889]
[1748382903919,0.18328042,109090.0,109080.0,1.97603103]
[1748382904517,0.18328042,109090.0,109080.0,0.86092]
[1748382904722,0.76558042,109090.0,109080.0,1.2868]
[1748382905022,0.96028042,109090.0,109080.0,1.2868]
[1748382905218,0.96028042,109090.0,109080.0,1.4700597]
[1748382905414,0.96028042,109090.0,109080.0,1.2868]
[1748382905610,0.75028042,109090.0,109080.0,0.50012]
[1748382905811,1.01028042,109090.0,109080.0,0.926]
[1748382906016,1.01028042,109090.0,109080.0,0.50012]
[1748382906319,1.26273256,109090.0,109080.0,0.7304]
[1748382906510,1.62353256,109090.0,109080.0,0.3044]
[1748382906707,1.62353256,109090.0,109080.0,0.30452]
[1748382907121,1.37108042,109090.0,109080.0,0.30452]
[1748382908521,1.62353256,109090.0,109080.0,0.12312]
[1748382909029,2.04941256,109090.0,109080.0,0.003]
[1748382909209,2.14108456,109090.0,109080.0,1e-07]
[1748382909409,0.1832597,109080.0,109070.0,0.00013752]
[1748382909614,1.66071184,109080.0,109070.0,0.00013752]
[1748382910023,1.66071184,109080.0,109070.0,0.00025752]
[1748382910823,1.69810002,109080.0,109070.0,0.00325752]
[1748382911013,1.69910002,109080.0,109070.0,0.00325752]
[1748382911525,1.66171184,109080.0,109070.0,0.00325752]
[1748382911926,1.66171184,109080.0,109070.0,0.00313752]
[1748382912126,1.66171184,109080.0,109070.0,0.00325752]
[1748382912624,1.69910173,109080.0,109070.0,0.00325752]
[1748382913027,1.70110173,109080.0,109070.0,0.00025752]
[1748382913327,1.7011026,109080.0,109070.0,0.00025752]
[1748382914527,1.7145139,109080.0,109070.0,0.00025752]
[1748382917824,1.71451688,109080.0,109070.0,0.00025752]
[1748382919628,2.30864902,109080.0,109070.0,2e-08]
[1748382919827,2.30864902,109080.0,109050.0,0.00137568]
[1748382919828,0.1832933,109060.0,109050.0,0.00137568]
[1748382920028,1.27738544,109060.0,109050.0,0.03137568]
[1748382920230,1.02738544,109060.0,109050.0,0.03137568]
[1748382920424,1.39408544,109060.0,109050.0,0.03137568]
[1748382920626,2.04226621,109060.0,109050.0,0.00137568]
[1748382921126,2.04226621,109060.0,109050.0,0.00249568]
[1748382921433,2.04226621,109060.0,109050.0,0.00349568]
[1748382921928,2.04226621,109060.0,109050.0,8e-08]
[1748382922128,2.04225341,109060.0,109050.0,8e-08]
[1748382922516,2.04225341,109060.0,109050.0,0.00012008]
[1748382923323,2.04225341,109060.0,109050.0,8e-08]
[1748382926431,2.04220269,109060.0,109050.0,8e-08]
[1748382930928,1.78975055,109060.0,109050.0,8e-08]
[1748382931237,2.04220269,109060.0,109050.0,8e-08]
[1748382934438,0.1833101,109050.0,109040.0,0.18173752]
[1748382934639,1.78441657,109050.0,109040.0,0.18173752]
[1748382935834,1.53196443,109050.0,109040.0,0.18373752]
[1748382936138,1.79352289,109050.0,109040.0,0.18373752]
[1748382936341,1.79352289,109050.0,109040.0,0.18573752]
[1748382937647,1.79352289,109050.0,109040.0,0.37983752]
[1748382938146,1.83091812,109050.0,109040.0,0.37983752]
[1748382942545,1.93171812,109050.0,109040.0,0.37983752]
[1748382944041,1.93084086,109050.0,109040.0,0.37983752]
[1748382945747,1.93084086,109050.0,109040.0,0.34840722]
[1748382948142,1.89432289,109050.0,109040.0,0.34840722]
[1748382948342,1.97339041,109050.0,109040.0,0.34840722]
[1748382950146,2.3906984,109050.0,109040.0,0.34840722]
[1748382952555,2.3483002,109050.0,109040.0,0.34840722]
[1748382952745,2.39084186,109050.0,109040.0,0.34840722]
[1748382956062,2.32800314,109050.0,109040.0,0.34840722]
[1748382956953,2.32801013,109050.0,109040.0,0.34840722]
[1748382960965,2.32800982,109050.0,109040.0,0.34840722]
[1748382961267,1.60640982,109050.0,109040.0,0.34840722]
[1748382961466,2.32800982,109050.0,109040.0,0.34840722]
[1748382963378,1.60640982,109050.0,109040.0,0.34840722]
[1748382963559,2.32800982,109050.0,109040.0,0.34840722]
[1748382964165,2.32801163,109050.0,109040.0,0.34840722]
[1748382966564,2.18466533,109050.0,109040.0,0.34840722]
[1748382966762,2.71134533,109050.0,109040.0,0.29394932]
[1748382966965,2.67467216,109050.0,109040.0,0.25390822]
[1748382967266,2.75389411,109050.0,109040.0,0.25390822]
[1748382969268,2.71134648,109050.0,109040.0,0.25390822]
[1748382969469,2.67467216,109050.0,109040.0,0.25390822]
[1748382970471,2.67467216,109050.0,109040.0,0.23058032]
[1748382971176,2.48505874,109050.0,109040.0,0.23058032]
[1748382971360,2.67467216,109050.0,109040.0,0.23058032]
[1748382972774,2.61816417,109050.0,109040.0,0.23058032]
[1748382973367,1.83140417,109050.0,109040.0,0.23058032]
[1748382979675,1.36988417,109050.0,109040.0,0.23058032]
[1748382979875,1.47060417,109050.0,109040.0,0.23058032]
[1748382980177,1.83140417,109050.0,109040.0,0.23058032]
[1748382981281,1.91053635,109050.0,109040.0,0.23058032]
[1748382982078,1.72092293,109050.0,109040.0,0.23058032]
[1748382982277,1.91053635,109050.0,109040.0,0.23058032]
[1748382988175,1.91053635,109050.0,109040.0,0.002]
[1748382988376,0.1833269,109040.0,109030.0,0.50533524]
[1748382988576,1.5293725,109040.0,109030.0,0.43287563]
[1748382989287,1.5293725,109040.0,109030.0,0.43299563]
[1748382989486,1.29721274,109040.0,109030.0,0.04029563]
[1748382989788,1.9550525,109040.0,109030.0,0.04329563]
[1748382989980,2.14466592,109040.0,109030.0,0.04329563]
[1748382990379,2.14466592,109040.0,109030.0,0.04629563]
[1748382991092,2.14466592,109040.0,109030.0,0.24359563]
[1748382991387,1.96133902,109040.0,109020.0,0.0875097]
[1748382991583,1.05467712,109030.0,109020.0,0.43163811]
[1748382991784,1.42126296,109030.0,109020.0,0.43163811]
[1748382992979,1.42126296,109030.0,109020.0,0.23733811]
[1748382993377,1.42126296,109030.0,109020.0,0.24133811]
[1748382994081,1.38467712,109030.0,109020.0,0.24333811]
[1748382994286,1.42230906,109030.0,109020.0,0.24333811]
[1748382994487,1.42230906,109030.0,109020.0,0.24133811]
[1748382994690,1.42230906,109030.0,109020.0,0.44213811]
[1748382995588,1.42230906,109030.0,109020.0,0.25542247]
[1748382997391,1.42230906,109030.0,109020.0,0.05862247]
[1748382997785,1.42230906,109030.0,109020.0,0.25552247]
[1748382998593,1.42262373,109030.0,109020.0,0.25552247]
[1748383002994,1.42261602,109030.0,109020.0,0.25552247]
[1748383004794,1.42461602,109030.0,109020.0,0.25152247]
[1748383005297,1.42461602,109030.0,109020.0,0.24752247]
[1748383005298,1.42561602,109030.0,109020.0,0.24752247]
[1748383005690,1.2360026,109030.0,109020.0,0.24752247]
[1748383005890,1.42561602,109030.0,109020.0,0.24752247]
[1748383006797,1.32489602,109030.0,109020.0,0.24752247]
[1748383007100,1.6614826,109030.0,109020.0,0.24752247]
[1748383007394,1.85107763,109030.0,109020.0,0.24752247]
[1748383008299,1.66146421,109030.0,109020.0,0.24752247]
[1748383008495,1.85107763,109030.0,109020.0,0.24752247]
[1748383008695,1.85107763,109030.0,109020.0,0.33752247]
[1748383011599,1.85108419,109030.0,109020.0,0.33752247]
[1748383012299,1.85108419,109030.0,109020.0,0.14062247]
[1748383012997,0.74877077,109030.0,109020.0,0.14062247]
[1748383013300,1.46454419,109030.0,109020.0,0.33112247]
[1748383013502,1.65994419,109030.0,109020.0,0.33112247]
[1748383014798,1.65994419,109030.0,109020.0,0.14062247]
[1748383015297,1.65994419,109030.0,109020.0,0.33112247]
[1748383015810,1.65994419,109030.0,109020.0,0.37129954]
[1748383015992,1.65996307,109030.0,109020.0,0.37129954]
[1748383017597,1.65996307,109030.0,109020.0,0.13017707]
[1748383018106,1.65996307,109030.0,109020.0,0.32727707]
[1748383018894,1.65996307,109030.0,109020.0,0.52417707]
[1748383020404,1.65998512,109030.0,109020.0,0.52417707]
[1748383020704,2.02078512,109030.0,109020.0,0.52417707]
[1748383021813,1.23442512,109030.0,109020.0,0.52417707]
[1748383022007,1.65990512,109030.0,109020.0,0.52417707]
[1748383022892,2.02070512,109030.0,109020.0,0.52417707]
[1748383023108,1.65990512,109030.0,109020.0,0.52417707]
[1748383024109,1.65990512,109030.0,109020.0,0.32727707]
[1748383024306,1.65990512,109030.0,109020.0,0.52417707]
[1748383024714,1.65990512,109030.0,109020.0,0.13017707]
[1748383026009,1.65990512,109030.0,109020.0,0.32347707]
[1748383028514,2.02070512,109030.0,109020.0,0.32347707]
[1748383031807,2.02069394,109030.0,109020.0,0.32347707]
[1748383032816,1.7941237,109030.0,109020.0,0.32347707]
[1748383033116,2.02069209,109030.0,109020.0,0.32347707]
[1748383036423,1.65989209,109030.0,109020.0,0.32347707]
[1748383040621,1.65989933,109030.0,109020.0,0.32347707]
[1748383042827,2.21609933,109030.0,109020.0,0.32347707]
[1748383043826,1.85529933,109030.0,109020.0,0.32347707]
[1748383045027,1.85530693,109030.0,109020.0,0.32347707]
[1748383047823,1.13961351,109030.0,109020.0,0.32347707]
[1748383048022,1.85486693,109030.0,109020.0,0.32347707]
[1748383048218,1.66525351,109030.0,109020.0,0.32347707]
[1748383048417,1.85486693,109030.0,109020.0,0.32347707]
[1748383048623,2.21566693,109030.0,109020.0,0.32347707]
[1748383049123,2.02605351,109030.0,109020.0,0.32347707]
[1748383049330,1.85486703,109030.0,109020.0,0.71007707]
[1748383049724,1.42966703,109030.0,109020.0,0.71007707]
[1748383050830,1.24005361,109030.0,109020.0,0.71007707]
[1748383051131,1.42966703,109030.0,109020.0,0.71007707]
[1748383053617,1.42966587,109030.0,109020.0,0.71007707]
[1748383055531,0.74881245,109030.0,109020.0,0.71007707]
[1748383055827,0.93842587,109030.0,109020.0,0.71007707]
[1748383056414,1.13492587,109030.0,109020.0,0.71007707]
[1748383057933,1.13492449,109030.0,109020.0,0.71007707]
[1748383058528,1.13641107,109030.0,109020.0,0.71007707]
[1748383058733,1.32602449,109030.0,109020.0,0.54961033]
[1748383058933,1.32602449,109030.0,109020.0,0.67961033]
[1748383062126,1.13641107,109030.0,109020.0,0.67961033]
[1748383062327,1.32635016,109030.0,109020.0,0.67961033]
[1748383063619,1.32635016,109030.0,109020.0,0.82915678]
[1748383063824,1.32635016,109030.0,109020.0,0.78278892]
[1748383064029,1.32635016,109030.0,109020.0,0.67961033]
[1748383066538,1.3263366,109030.0,109020.0,0.67961033]
[1748383071045,1.32633372,109030.0,109020.0,0.67961033]
[1748383072333,1.1367203,109030.0,109020.0,0.67961033]
[1748383072529,1.32633372,109030.0,109020.0,0.67961033]
[1748383072729,1.32633372,109030.0,109020.0,0.55496]
[1748383074342,1.1367203,109030.0,109020.0,0.55496]
[1748383074639,1.32633372,109030.0,109020.0,0.3274]
[1748383074826,1.32633372,109030.0,109020.0,0.47694615]
[1748383075026,1.32633372,109030.0,109020.0,0.53032154]
[1748383075232,1.28905712,109030.0,109020.0,0.43057858]
[1748383075439,1.32632415,109030.0,109020.0,0.43057858]
[1748383075633,1.32632415,109030.0,109020.0,0.3274]
[1748383076750,1.32632415,109030.0,109020.0,0.43057855]
[1748383076940,1.32632415,109030.0,109020.0,0.47694734]
[1748383077146,1.32632415,109030.0,109020.0,0.37376879]
[1748383077640,1.32632415,109030.0,109020.0,0.3274]
[1748383077845,1.32632415,109030.0,109020.0,0.37376969]
[1748383078228,1.32632415,109030.0,109020.0,0.47694827]
[1748383078937,1.32632415,109030.0,109020.0,0.47694823]
[1748383079137,1.32632415,109030.0,109020.0,0.87054823]
[1748383079333,1.32632415,109030.0,109020.0,0.92392362]
[1748383079529,1.28905712,109030.0,109020.0,0.92392362]
[1748383079838,1.32632636,109030.0,109020.0,0.92392362]
[1748383081146,1.32632636,109030.0,109020.0,0.87054823]
[1748383081344,1.32632636,109030.0,109020.0,0.5258]
[1748383081535,1.32632636,109030.0,109020.0,0.13]
[1748383082841,1.51593978,109030.0,109020.0,0.17021506]
[1748383083139,1.32632636,109030.0,109020.0,0.17021506]
[1748383084136,1.51593978,109030.0,109020.0,0.17021506]
[1748383084341,1.51593978,109030.0,109020.0,0.13]
[1748383084948,1.13671294,109030.0,109020.0,0.13]
[1748383085149,1.51593978,109030.0,109020.0,0.13]
[1748383085837,1.51593978,109030.0,109020.0,0.17021888]
[1748383086442,1.47867054,109030.0,109020.0,0.17021888]
[1748383086640,1.51591827,109030.0,109020.0,0.17021888]
[1748383087442,1.51591827,109030.0,109020.0,0.17033888]
[1748383089441,1.51591827,109030.0,109020.0,0.21671104]
[1748383089646,1.51591827,109030.0,109020.0,0.17033888]
[1748383090941,1.51589671,109030.0,109020.0,0.17033888]
[1748383092253,1.94073671,109030.0,109020.0,0.17033888]
[1748383092455,2.30153671,109030.0,109020.0,0.17033888]
[1748383093052,1.92230844,109030.0,109020.0,0.17033888]
[1748383093250,2.30153528,109030.0,109020.0,0.17033888]
[1748383093959,2.11192186,109030.0,109020.0,0.17033888]
[1748383094652,1.87669528,109030.0,109020.0,0.04033888]
[1748383094858,2.44426408,109030.0,109020.0,0.04021888]
[1748383095062,2.44426408,109030.0,109020.0,0.04033888]
[1748383095258,2.36455054,109030.0,109020.0,0.00012]
[1748383095553,0.1833605,109020.0,109010.0,0.04123618]